[Event "Croatian 1B League 2022"]
[Site "Porec"]
[Date "2022.09.30"]
[Round "7.5"]
[White "Zadravec, Matija"]
[Black "Zelenika, Srdjan"]
[Result "1/2-1/2"]
[ECO "B30"]
[WhiteElo "2250"]
[BlackElo "2207"]
[Annotator "TA"]
[PlyCount "127"]
[EventDate "2022.09.24"]
[EventType "team-tourn"]
[EventCountry "CRO"]
[SourceTitle "playchess.com"]
[Source "ChessBase"]
[SourceQuality "1"]
[TimeControl "40/5400+30:1800+30"]

{[%evp 10,127,4,11,15,-29,22,-55,11,5,20,21,13,9,44,18,47,50,46,18,50,49,39,28,103,93,106,84,84,33,37,31,35,37,66,36,36,33,35,0,-20,-79,-73,-103,104,105,101,132,114,43,35,43,163,160,619,596,656,647,945,260,242,126,115,127,115,122,114,117,169,155,174,74,74,74,128,128,128,74,128,84,84,84,84,84,84,84,84,84,84,84,84,84,84,91,91,91,91,91,91,0,91,8,8,8,8,8,8,8,8,8,8,8,8,8,8,8,8,8,8,8]} 1. e4 {[%emt 0:00:13]} c5 {[%emt 0:00:01]} 2. Nc3 {[%emt 0:00:10]} Nc6 {[%emt 0:00:26]} 3. Bb5 {[%emt 0:00:05]} Nd4 {[%emt 0:00:35]} 4. Nf3 {[%emt 0:00:08]} e6 {[%emt 0:07:21]} 5. O-O {[%emt 0:04:45]} a6 {[%emt 0:03:43]} 6. Bd3 {[%emt 0:00:02]} Nc6 {[%emt 0:16:41] B30: Sicilian: 2...Nc6 3 Bb5, lines without ...g6.} 7. Re1 {[%emt 0:12:07]} d6 {[%emt 0:03:56]} (7... g5 $142 $1 8. g3 d6) 8. b3 {[%emt 0:06:44]} (8. Bc4 $11) 8... Be7 {[%emt 0:02:24]} (8... g5 $1 $15 9. g3 Bg7) 9. Bb2 $11 {[%emt 0:00:26][%cal Oc3d5]} Nf6 {[%emt 0:02:13] Inhibits Nd5.} 10. e5 {[%emt 0:08:00]} dxe5 {[%emt 0:01:33]} 11. Nxe5 {[%emt 0:00:23]} Nb4 {[%emt 0:21:43]} 12. Bf1 {[%emt 0:05:20]} O-O {[%emt 0:00:22]} 13. a3 {[%emt 0:06:03]} Nbd5 {[%emt 0:00:10] [#]} 14. Nxd5 $146 {[%emt 0:04:20]} ({Predecessor:} 14. d4 cxd4 15. Qxd4 Nxc3 16. Qxc3 Nd5 17. Qg3 Bf6 18. Rad1 Qc7 19. c4 Ne7 20. Ng4 Qxg3 21. Nxf6+ gxf6 22. hxg3 {½-½ (57) Bugayev,V-Guimaraes,W (2211) Chess.com INT 2021}) 14... Nxd5 {[%emt 0:09:24]} 15. d4 {[%emt 0:13:11]} (15. Qh5 {feels hotter.} Qc7 16. Bd3 f5 17. Qf3) 15... f6 {[%emt 0:05:08]} 16. Nf3 {[%emt 0:02:00]} Kh8 {[%emt 0:10:34]} (16... cxd4 $11 17. Qxd4 e5) 17. c4 $16 {[%emt 0:03:55]} Nc7 {[%emt 0:00:28]} 18. Qc2 {[%emt 0:01:23] dxc5 is the strong threat.} cxd4 {[%emt 0:04:58]} 19. Bxd4 {[%emt 0:03:26]} (19. Nxd4 $16 e5 20. Nf5) 19... e5 $14 {[%emt 0:01:03]} 20. Bb6 {[%emt 0:00:04] Strongly threatening Red1.} Qd6 {[%emt 0:00:06]} 21. c5 {[%emt 0:00:30]} Qc6 {[%emt 0:00:07]} 22. Bd3 {[%emt 0:00:01] White is more active.} Nd5 $1 {[%emt 0:00:54]} 23. Be4 {[%emt 0:07:34] Hoping for Rad1.} Qe6 $1 {[%emt 0:00:33]} 24. Bxh7 {[%emt 0:08:28]} (24. Ba5 $14) 24... Nxb6 $11 {[%emt 0:02:49]} 25. Nh4 {[%emt 0:07:06]} (25. cxb6 $11 f5 26. Nxe5 (26. Rxe5 Qf6 $17) 26... Kxh7 27. Nc4 (27. Nc6 $2 Qxc6 28. Qxc6 bxc6 $19)) 25... f5 $17 {[%emt 0:03:00]} 26. Rxe5 {[%emt 0:00:05]} Bxh4 {[%emt 0:00:16]} (26... Kxh7 $2 27. Rxe6 Bxe6 28. Qe2 Bxh4 29. Qxe6 $16) (26... Qf6 $17 27. Ng6+ Kxh7 28. Nxf8+ Bxf8) 27. Rxe6 $16 {[%emt 0:00:32]} Bxe6 {[%emt 0:00:02]} 28. Bg6 {[%emt 0:00:16] aiming for Qe2.} Nd5 {[%emt 0:01:25]} 29. Re1 {[%emt 0:03:46]} (29. g3 $1 $16 {Threatens to win with Qe2.} Bg5 30. Re1) 29... Bg8 $1 $14 {[%emt 0:00:58]} 30. g3 $40 {[%emt 0:00:50][%mdl 128] White attacks.} Bg5 {[%emt 0:00:30]} (30... Ne7 $1 $14) 31. f4 $1 $18 {[%emt 0:02:06]} (31. Bxf5 $6 Rad8 $16) 31... Bf6 {[%emt 0:00:44]} (31... Bh6 $16 32. b4 (32. Bxf5 Rad8 $16) 32... Nf6 33. Qxf5 Rad8) 32. Qd1 {[%emt 0:01:02]} Bh7 {[%emt 0:01:20]} 33. Bxh7 {[%emt 0:00:15]} (33. Qxd5 Bxg6 34. Qxb7 Rab8 $11) 33... Rad8 {[%emt 0:00:17]} 34. Bg6 {[%emt 0:01:32]} (34. Bxf5 {White threatens Qh5+ and mate.} g6 35. Bxg6 Nxf4 36. Qg4 (36. gxf4 Rxd1 37. Rxd1 Bb2 $18) 36... Nxg6 37. Qxg6) 34... Nxf4 {[%emt 0:00:16] [#]} 35. gxf4 {[%emt 0:00:19]} (35. Qf3 $1 $18 Bd4+ 36. Kh1 Nxg6 37. Qh5+ Kg8 38. Qxg6) 35... Rxd1 $16 {[%emt 0:00:10]} 36. Rxd1 $18 {[%emt 0:00:01][%mdl 4096] Endgame KRB-KRB} Bb2 {[%emt 0:01:32]} 37. a4 {[%emt 0:00:08]} Ba3 {[%emt 0:00:10]} 38. Rd5 {[%emt 0:00:31]} Bc1 {[%emt 0:00:42]} (38... Kg8 $16 39. Kg2 (39. Bxf5 g6 $16) 39... Rf6) 39. Kf2 {[%emt 0:01:03]} ({But not} 39. Rxf5 Rxf5 40. Bxf5 Bxf4 $16) 39... Bxf4 {[%emt 0:00:24]} 40. Rxf5 {[%emt 0:00:00]} (40. Rd7 $18 {is more deadly.}) 40... Rxf5 $16 {[%emt 0:00:00]} 41. Bxf5 {[%emt 0:00:38] Black must now prevent Bc8. KB-KB} Kg8 {[%emt 0:12:30]} ({Black should play} 41... a5) 42. Bc8 {[%emt 0:12:34]} a5 {[%emt 0:01:11]} 43. Bxb7 {[%emt 0:02:06]} ({White should try} 43. h3) 43... Kf8 {[%emt 0:01:17]} (43... Bxh2 $142 44. Bf3 Kf8) 44. Kf3 {[%emt 0:03:03]} Bxh2 {[%emt 0:00:24]} 45. Ke4 {[%emt 0:01:17]} Ke7 {[%emt 0:00:14]} 46. Kd5 {[%emt 0:01:19]} Kd7 {[%emt 0:01:54]} 47. Kc4 {[%emt 0:00:38]} Kc7 {[%emt 0:01:26]} 48. Bf3 {[%emt 0:00:28] And now Kb5 would win.} Bg3 {[%emt 0:00:18]} 49. b4 {[%emt 0:00:47]} axb4 {[%emt 0:00:08]} 50. Kxb4 {[%emt 0:00:05]} Kb8 {[%emt 0:05:47] [#]} 51. Kb5 $1 {[%emt 0:00:01]} Bf4 {[%emt 0:00:24]} 52. a5 {[%emt 0:00:37]} Bg3 {[%emt 0:00:11]} 53. Kb6 {[%emt 0:00:35]} Bc7+ {[%emt 0:00:09]} 54. Kb5 {[%emt 0:00:09]} Bg3 $1 {[%emt 0:00:05]} 55. a6 {[%emt 0:00:13]} (55. Be4 $16) 55... Bf4 {[%emt 0:00:27] The position is equal.} 56. Kb6 {[%emt 0:00:34]} Bc7+ {[%emt 0:00:07]} 57. Kc6 {[%emt 0:00:01][%cal Oa6a7] Intending a7+! and mate.} Bf4 {[%emt 0:00:14]} 58. Be4 {[%emt 0:01:09]} Bg3 {[%emt 0:00:19]} 59. Kd7 {[%emt 0:00:17]} Bf4 {[%emt 0:00:14]} 60. Bf3 {[%emt 0:01:19]} Bg3 {[%emt 0:00:09]} 61. c6 {[%emt 0:00:10]} Bf4 {[%emt 0:00:11]} 62. a7+ {[%emt 0:00:50]} Kxa7 {[%emt 0:00:06]} 63. c7 {[%emt 0:00:01]} Bxc7 {[%emt 0:00:09]} 64. Kxc7 {[%emt 0:00:03] Black escapes into a draw.  Weighted Error Value: White=0.32/Black=0.32} 1/2-1/2

[Event "Croatian 1B League 2022"]
[Site "Porec"]
[Date "2022.09.30"]
[Round "7.6"]
[White "Klobucar, Dean"]
[Black "Novak, Ivan"]
[Result "1-0"]
[ECO "B53"]
[WhiteElo "2196"]
[BlackElo "2247"]
[Annotator "TA"]
[PlyCount "77"]
[EventDate "2022.09.24"]
[EventType "team-tourn"]
[EventCountry "CRO"]
[SourceTitle "playchess.com"]
[Source "ChessBase"]
[SourceQuality "1"]
[TimeControl "40/5400+30:1800+30"]

{[%evp 9,77,9,13,13,8,10,17,16,13,13,8,8,27,8,37,11,0,0,0,0,0,0,0,0,50,46,66,47,52,55,79,60,150,83,88,22,38,0,77,0,16,0,0,0,0,0,10,18,139,131,212,197,462,122,121,127,194,86,614,607,779,751,765,765,897,695,748,748,29979,29979]} 1. e4 {[%emt 0:00:03]} c5 {[%emt 0:00:06]} 2. Nf3 {[%emt 0:00:13]} d6 {[%emt 0:00:05]} 3. d4 {[%emt 0:00:07]} cxd4 {[%emt 0:00:08]} 4. Qxd4 {[%emt 0:00:07]} Nc6 {[%emt 0:00:10]} 5. Bb5 {[%emt 0:00:06]} a6 {[%emt 0:01:52]} 6. Bxc6+ {[%emt 0:00:04] B53: Sicilian: 2...d6: Lines with Qxd4.} bxc6 {[%emt 0:00:03]} 7. c4 {[%emt 0:00:10]} e5 {[%emt 0:00:45]} 8. Qd3 {[%emt 0:00:14] The position is equal.} Qc7 {[%emt 0:00:31]} 9. O-O {[%emt 0:04:06][%cal Oc4c5]} Nf6 {[%emt 0:01:03]} 10. Nc3 {[%emt 0:10:53]} h6 {[%emt 0:07:20]} 11. Be3 {[%emt 0:13:18]} Be7 {[%emt 0:04:33] [#]} 12. Rfc1 $146 {[%emt 0:16:49][%cal Oc4c5]} ({Predecessor:} 12. Rac1 Be6 13. Rfd1 O-O 14. b3 Rfd8 15. h3 Qb8 16. Qc2 d5 17. cxd5 cxd5 18. exd5 Nxd5 19. Nxd5 Rxd5 20. Rxd5 Bxd5 {½-½ (48) Gavric,M (2403)-Divljan,B (2154) Banja Vrucica 2013}) 12... Be6 {[%emt 0:15:24]} 13. Nd5 {[%emt 0:05:11]} cxd5 {[%emt 0:00:43]} 14. cxd5 {[%emt 0:00:10]} Qb7 {[%emt 0:00:08][%cal Re6d5]} 15. dxe6 {[%emt 0:00:13]} fxe6 {[%emt 0:00:21]} 16. Nd2 {[%emt 0:06:48]} Kf7 {[%emt 0:10:04]} (16... O-O $11) 17. Nc4 $14 {[%emt 0:02:04][%cal Od3d6] Strongly threatening Qxd6!} Rhd8 {[%emt 0:00:35]} (17... Nxe4 18. f3 Nf6 19. Qxd6 $3 $16 {[%mdl 512]} (19. Nxd6+ Bxd6 20. Qxd6 Rhc8 $16)) 18. f3 {[%emt 0:01:23]} Rac8 {[%emt 0:02:03]} 19. Rc2 {[%emt 0:07:07]} Qb5 {[%emt 0:42:44]} 20. Rac1 {[%emt 0:08:45][%cal Oc4d6]} Rb8 {[%emt 0:00:19]} (20... Kf8 $14) 21. b3 {[%emt 0:05:31]} (21. Qd2 $142) 21... Kg8 $16 {[%emt 0:01:25]} 22. Qf1 {[%emt 0:03:20]} (22. Qe2 $16) 22... Nd7 $11 {[%emt 0:04:52]} 23. Nd2 {[%emt 0:05:31]} (23. Qd1 $5 {[%cal Rc4d6]}) 23... Nc5 {[%emt 0:00:49]} (23... d5 $1 $11 {keeps the balance.}) 24. Nc4 {[%emt 0:01:22]} (24. Rc3 $16) 24... Nd7 $1 {[%emt 0:04:13]} 25. Nd2 {[%emt 0:00:34]} d5 {[%emt 0:00:13]} 26. Rc6 {[%emt 0:01:48]} Bb4 {[%emt 0:00:55]} 27. a4 {[%emt 0:01:14]} (27. Rxa6 d4 28. Qxb5 Rxb5 29. Bxh6 gxh6 $19) 27... Qb7 {[%emt 0:01:36] And now ...d4 would win.} 28. exd5 {[%emt 0:03:35] Qd3 is the strong threat.} (28. Rxa6 $2 d4 29. Bf2 Bxd2 $19) (28. Qxa6 $2 Qxa6 29. Rxa6 d4 30. Bxh6 gxh6 $19) 28... exd5 {[%emt 0:00:08] [#]} (28... Nf6 $1 $11 29. d6 (29. Rxe6 $2 Qxd5 30. Rxf6 Bxd2 $19) (29. Rxa6 $2 Nxd5 30. Ra7 Bxd2 $19) (29. Qxa6 Qxa6 30. Rxa6 Nxd5 $17) 29... Nd5) 29. Qd3 $1 $36 {[%emt 0:00:17][%mdl 2048] Threatens to win with Rc7. Black is under strong pressure. White has more active pieces.} (29. Qxa6 $2 Qxa6 30. Rxa6 d4 31. Bxh6 gxh6 $19) (29. Rxa6 $6 Rdc8 30. Rxc8+ Qxc8 $11) 29... d4 {[%emt 0:00:54]} (29... Kh8 $16) 30. Bxh6 $1 $18 {[%emt 0:00:12]} Bxd2 {[%emt 0:00:26]} (30... Nc5 31. R1xc5 Bxc5 32. Qc4+ (32. Rxc5 gxh6 33. Qg6+ Qg7 $16) 32... Kh7 33. Rxc5 (33. Qxc5 Rbc8 $14) 33... Kxh6) 31. Bxd2 $2 {[%emt 0:01:56]} (31. Qxd2 $18 Qxb3 32. Rg6 (32. Rxa6 gxh6 33. Qxh6 Qe3+ 34. Qxe3 dxe3 $17)) 31... Qxb3 $16 {[%emt 0:00:28]} 32. Qe4 {[%emt 0:00:58]} Re8 {[%emt 0:00:44]} (32... d3 $16 {might work better.} 33. R6c3 (33. Rxa6 Qa2 $16) 33... Qe6) 33. Bg5 {[%emt 0:00:13]} ({Don't play} 33. Rxa6 Rbc8 $16) (33. Rc7 $18 Qe6 34. R1c6) 33... Nb6 {[%emt 0:00:42][%mdl 8192] This costs Black the game.} (33... Nf8 $16) 34. Rb1 $18 {[%emt 0:00:47]} Qxa4 {[%emt 0:00:21]} 35. Rcxb6 {[%emt 0:00:23]} Rxb6 {[%emt 0:00:26]} 36. Rxb6 {[%emt 0:00:01]} Qc4 {[%emt 0:00:42] Inhibits Qd5+.} 37. Rb7 {[%emt 0:00:32] White threatens Qg6 and mate.} Qe6 {[%emt 0:00:20] Inhibits Qg6.} 38. h4 {[%emt 0:00:24][%cal Bh2h4,Bh4h5][%mdl 32] Threatening mate with h5.} a5 {[%emt 0:00:33]} 39. h5 {[%emt 0:00:42] Weighted Error Value: White=0.37/Black=0.83} 1-0

[Event "Croatian 1B League 2022"]
[Site "Porec"]
[Date "2022.09.30"]
[Round "7.7"]
[White "Dragnev, Valentin"]
[Black "Brkic, Ante"]
[Result "1/2-1/2"]
[ECO "E54"]
[WhiteElo "2544"]
[BlackElo "2602"]
[Annotator "TA"]
[PlyCount "41"]
[EventDate "2022.09.24"]
[EventType "team-tourn"]
[EventCountry "CRO"]
[SourceTitle "playchess.com"]
[Source "ChessBase"]
[SourceQuality "1"]
[TimeControl "40/5400+30:1800+30"]

{[%evp 20,41,0,0,0,0,0,0,0,0,0,0,0,0,0,0,0,0,0,0,0,0,0,0]} 1. d4 {[%emt 0:00:03]} Nf6 {[%emt 0:00:09]} 2. c4 {[%emt 0:00:04]} e6 {[%emt 0:00:03]} 3. Nc3 {[%emt 0:00:04]} Bb4 {[%emt 0:00:05]} 4. e3 {[%emt 0:00:06]} O-O {[%emt 0:00:05]} 5. Bd3 {[%emt 0:00:26]} d5 {[%emt 0:00:05]} 6. Nf3 {[%emt 0:00:06]} dxc4 {[%emt 0:00:13]} 7. Bxc4 {[%emt 0:00:08]} c5 {[%emt 0:00:04]} 8. O-O {[%emt 0:00:08]} cxd4 {[%emt 0:00:02]} 9. exd4 {[%emt 0:00:07]} b6 {[%emt 0:00:06]} 10. Bg5 {[%emt 0:00:23]} Bb7 {[%emt 0:00:12][%cal Bc8b7,Bb7d5,Bd5c4][%mdl 32]} 11. Ne5 {[%emt 0:00:14] The position is equal.} Nbd7 {[%emt 0:00:06] E54: Nimzo-Indian: Rubinstein: Main Line: 7...dxc4 8 Bxc4.} 12. Nxd7 {[%emt 0:00:09]} Qxd7 {[%emt 0:00:03]} 13. Bxf6 {[%emt 0:00:16]} gxf6 {[%emt 0:00:04]} 14. d5 {[%emt 0:00:11] Hoping for dxe6.} Bxc3 {[%emt 0:00:07]} 15. bxc3 {[%emt 0:00:13]} Bxd5 {[%emt 0:00:07]} ({Don't take} 15... exd5 16. Bd3 h6 17. Qh5 $14) 16. Qg4+ {[%emt 0:00:05]} Kh8 {[%emt 0:00:04][%cal Od5g2] [#] Strongly threatening ...Bxg2!} 17. Qh4 {[%emt 0:00:06] 17.Qd4 is vanishing.} Bxc4 {[%emt 0:00:04]} 18. Qxf6+ {[%emt 0:00:12]} Kg8 {[%emt 0:00:02]} 19. Qg5+ {[%emt 0:00:05]} Kh8 {[%emt 0:00:04]} 20. Qf6+ {[%emt 0:00:04]} Kg8 {[%emt 0:00:04] [#]} 21. Qg5+ $146 {[%emt 0:00:04] An even fight not without its subleties.  Weighted Error Value: White=0.00 (flawless) /Black=0.00 (flawless)} ({Predecessor:} 21. Rfd1 Qd8 {½-½ (23) David,A (2427)-Macovei,A (2470) Targu Mures 2022}) 1/2-1/2

[Event "Croatian 1B League 2022"]
[Site "Porec"]
[Date "2022.09.30"]
[Round "7.8"]
[White "Saraci, Nderim"]
[Black "Shengelia, David"]
[Result "1/2-1/2"]
[ECO "B52"]
[WhiteElo "2490"]
[BlackElo "2451"]
[Annotator "TA"]
[PlyCount "38"]
[EventDate "2022.09.24"]
[EventType "team-tourn"]
[EventCountry "CRO"]
[SourceTitle "playchess.com"]
[Source "ChessBase"]
[SourceQuality "1"]
[TimeControl "40/5400+30:1800+30"]

{[%evp 19,20,29,21]} 1. e4 {[%emt 0:00:03]} c5 {[%emt 0:00:18]} 2. Nf3 {[%emt 0:00:20]} d6 {[%emt 0:00:42]} 3. Bb5+ {[%emt 0:00:31]} Bd7 {[%emt 0:00:25]} 4. Bxd7+ {[%emt 0:00:09]} Qxd7 {[%emt 0:00:06]} 5. c4 {[%emt 0:00:08]} Nf6 {[%emt 0:00:22]} 6. Nc3 {[%emt 0:00:10]} Nc6 {[%emt 0:00:06]} 7. d4 {[%emt 0:00:20]} cxd4 {[%emt 0:00:11]} 8. Nxd4 {[%emt 0:00:07]} g6 {[%emt 0:00:21]} 9. f3 {[%emt 0:00:13]} Bg7 {[%emt 0:00:06]} 10. Be3 {[%emt 0:00:07]} O-O {[%emt 0:00:04] [#]} {Predecessor:} 11. O-O $146 {B52: Sicilian: Moscow Variation with 3...Bd7.} Rad8 12. Nxc6 bxc6 13. Qa4 c5 14. Qxd7 Nxd7 15. Rac1 Bxc3 16. Rxc3 Ne5 17. Rd1 Nc6 18. Kf2 f5 19. exf5 gxf5 {1-0 (56) Fedoseev,V (2685)-Oparin,G (2683) Chess.com INT 2022} 1/2-1/2

[Event "Croatian 1B League 2022"]
[Site "Porec"]
[Date "2022.09.30"]
[Round "7.9"]
[White "Sertic, Rudolf"]
[Black "Milanovic, Danilo"]
[Result "1/2-1/2"]
[ECO "B33"]
[WhiteElo "2357"]
[BlackElo "2403"]
[Annotator "TA"]
[PlyCount "25"]
[EventDate "2022.09.24"]
[EventType "team-tourn"]
[EventCountry "CRO"]
[SourceTitle "playchess.com"]
[Source "ChessBase"]
[SourceQuality "1"]
[TimeControl "40/5400+30:1800+30"]

{[%evp 24,25,51,0]} 1. e4 {[%emt 0:00:03]} c5 {[%emt 0:00:03]} 2. Nf3 {[%emt 0:00:05][%cal Bg1f3,Bf3d4,Bd4b5][%mdl 32]} Nc6 {[%emt 0:00:04]} 3. d4 {[%emt 0:00:04]} cxd4 {[%emt 0:00:05]} 4. Nxd4 {[%emt 0:00:04]} Nf6 {[%emt 0:00:07]} 5. Nc3 {[%emt 0:00:03]} e5 {[%emt 0:00:06]} 6. Ndb5 {[%emt 0:00:06]} d6 {[%emt 0:00:07]} 7. Bg5 {[%emt 0:00:05]} a6 {[%emt 0:00:05]} 8. Na3 {[%emt 0:00:03]} b5 {[%emt 0:00:06]} 9. Nd5 {[%emt 0:00:04] [#]} Qa5+ $146 {[%emt 0:00:07]} ({Predecessor:} 9... Be7 10. Bxf6 Bxf6 11. c3 Bg5 12. Nc2 Rb8 13. Bd3 O-O 14. Ncb4 Nxb4 15. cxb4 Be6 16. Bc2 a5 17. a3 Bxd5 18. Qxd5 Qc7 19. Bd1 axb4 20. axb4 Qc4 21. Bb3 Qxb4+ {½-½ (64) Dominguez Perez,L (2754)-Xiong,J (2690) Saint Louis 2022}) 10. Bd2 {[%emt 0:00:04]} Qd8 {[%emt 0:00:04]} 11. Bg5 {[%emt 0:00:07]} Qa5+ {[%emt 0:00:04] 11...Rb8 is the modern continuation.} 12. Bd2 {[%emt 0:00:07]} Qd8 {[%emt 0:00:04]} 13. Bg5 {[%emt 0:00:07]} (13. Bd3 $14) 1/2-1/2

[Event "Croatian 1B League 2022"]
[Site "Porec"]
[Date "2022.09.30"]
[Round "7.10"]
[White "Bubalovic, Davorin"]
[Black "Drmic, Tomislav"]
[Result "1/2-1/2"]
[WhiteElo "2201"]
[BlackElo "2254"]
[Annotator "TA"]
[PlyCount "27"]
[EventDate "2022.09.24"]
[EventType "team-tourn"]
[EventCountry "CRO"]
[SourceTitle "playchess.com"]
[Source "ChessBase"]
[SourceQuality "1"]
[TimeControl "40/5400+30:1800+30"]

{[%evp 9,14,39,61,66,62,56,86]} 1. e4 {[%emt 0:00:01]} d6 {[%emt 0:00:06]} 2. d4 {[%emt 0:00:05]} Nd7 {[%emt 0:00:06]} 3. Nf3 {[%emt 0:00:07]} c6 {[%emt 0:00:08]} 4. Nc3 {[%emt 0:00:06]} e5 {[%emt 0:00:08]} 5. a4 {[%emt 0:00:07]} a5 {[%emt 0:00:15] White is slightly better.} 6. Bc4 {[%emt 0:00:22] C41: Philidor Defence.} Be7 {[%emt 0:00:13]} 7. dxe5 {[%emt 0:00:05] White is much more active.} dxe5 {[%emt 0:00:08] [#]  Weighted Error Value: White=0.00 (flawless) /Black=0.10 (very precise)} {Predecessor:} 8. Ng5 $146 Nh6 9. Bxf7+ Nxf7 10. Ne6 Qb6 11. Nxg7+ Kd8 12. Qh5 Rf8 13. Ne6+ Ke8 14. Ng7+ {0-1 (20) Estrada Nieto,J (2253)-Gaehwiler,G (2400) Chess.com INT 2021} 1/2-1/2

[Event "Croatian 1B League 2022"]
[Site "Porec"]
[Date "2022.10.01"]
[Round "8.1"]
[White "Dobrovoljc, Vid"]
[Black "Neugebauer, Martin"]
[Result "1/2-1/2"]
[ECO "B51"]
[WhiteElo "2402"]
[BlackElo "2517"]
[Annotator "TA"]
[PlyCount "89"]
[EventDate "2022.09.24"]
[EventType "team-tourn"]
[EventCountry "CRO"]
[SourceTitle "playchess.com"]
[Source "ChessBase"]
[SourceQuality "1"]
[TimeControl "40/5400+30:1800+30"]

{[%evp 17,89,29,26,12,35,33,26,26,35,31,35,27,21,22,64,59,62,28,36,33,37,12,69,85,79,62,152,75,67,68,68,55,142,134,156,196,197,194,188,197,192,172,204,196,205,187,193,195,210,210,210,210,213,213,213,213,213,213,213,213,189,49,49,49,48,48,48,48,48,47,48,45,70,42]} 1. e4 {[%emt 0:03:18]} c5 {[%emt 0:00:20]} 2. Nf3 {[%emt 0:00:19]} d6 {[%emt 0:00:22]} 3. Bb5+ {[%emt 0:00:05]} Nc6 {[%emt 0:01:12]} 4. O-O {[%emt 0:01:03]} Bd7 {[%emt 0:00:20]} 5. Re1 {[%emt 0:00:44]} Nf6 {[%emt 0:00:30]} 6. c3 {[%emt 0:00:58]} a6 {[%emt 0:00:36]} 7. Bf1 {[%emt 0:02:08]} Bg4 {[%emt 0:00:29]} 8. d4 {[%emt 0:05:04]} cxd4 {[%emt 0:16:48]} 9. cxd4 {[%emt 0:00:31]} d5 {[%emt 0:01:20]} 10. exd5 {[%emt 0:04:46] B51: Sicilian: Moscow Variation (3 Bb5+) without 3...Bd7.} Nxd5 {[%emt 0:02:17]} 11. Nc3 {[%emt 0:01:27]} e6 {[%emt 0:02:04]} 12. h3 {[%emt 0:02:04] White has an edge.} Bxf3 {[%emt 0:06:01]} 13. Qxf3 {[%emt 0:00:49] Nxd5 is the strong threat.} Be7 {[%emt 0:00:07]} 14. Rd1 {[%emt 0:15:45] [#]} Bf6 $146 {[%emt 0:07:00]} ({Predecessor:} 14... O-O 15. g3 Qd7 16. Nxd5 Qxd5 17. Qxd5 exd5 18. a3 Rac8 19. Be2 Na5 20. Rd3 g6 {½-½ (53) Baranowski,T (2368)-Weber,K (2337) ICCF email 2020}) 15. Bc4 {[%emt 0:09:03][%cal Rc4d5]} Nxc3 {[%emt 0:14:02]} 16. bxc3 {[%emt 0:05:02][%cal Bb2c3,Bc3c4][%mdl 32]} O-O {[%emt 0:00:19]} 17. Bb3 {[%emt 0:05:36] White is more active.} Qa5 {[%emt 0:11:52]} 18. Bf4 {[%emt 0:01:19]} Rac8 {[%emt 0:04:17]} 19. Rac1 {[%emt 0:02:31]} Qa3 {[%emt 0:03:54]} (19... Bg5 $11) 20. d5 $14 {[%emt 0:10:56]} Na5 {[%emt 0:01:51]} 21. c4 {[%emt 0:05:35]} (21. dxe6 $6 Nxb3 22. axb3 Qxb3 $11) (21. Bc2 $5 {[%cal Rd5e6]} Rxc3 22. Qe4 $16) 21... Bb2 {[%emt 0:08:59]} (21... exd5 $14 22. cxd5 (22. Rxd5 Rfd8 $14) 22... Nxb3 23. axb3 (23. Qxb3 Qxb3 24. axb3 Rxc1 $14) 23... Rxc1 24. Bxc1 (24. Rxc1 Be5 $11) 24... Qd6) 22. Rc2 {[%emt 0:03:36]} (22. Rb1 $142 $1) 22... e5 $16 {[%emt 0:05:59]} 23. Bd2 $36 {[%emt 0:09:04][%mdl 2048] Strongly threatening Bxa5. White has good play.} Bd4 {[%emt 0:00:38]} 24. Bc3 {[%emt 0:02:33]} Bxc3 {[%emt 0:09:34]} ({Better is} 24... b5 $14 25. Bxd4 exd4) 25. Qxc3 {[%emt 0:00:05]} (25. Rxc3 $6 Qd6 $11) 25... Nxc4 {[%emt 0:01:11]} 26. d6 $1 {[%emt 0:04:03][%cal Bd5d6,Bd6d7][%mdl 32] Black must now prevent d7.} (26. Bxc4 Qxc3 27. Rxc3 b5 $11) 26... b5 {[%emt 0:00:52]} 27. d7 {[%emt 0:01:28][%mdl 64] Deflection} (27. Bxc4 Qxc3 28. Rxc3 Rxc4 29. Rxc4 bxc4 $11) 27... Rcd8 {[%emt 0:00:02] [#]} 28. Qd3 $1 {[%emt 0:02:39]} ({Don't take} 28. Bxc4 $6 Qxc3 29. Rxc3 bxc4 $16) 28... Qe7 {[%emt 0:00:57]} 29. Bxc4 {[%emt 0:00:04] Threatens to win with Bb3.} bxc4 {[%emt 0:00:04]} 30. Rxc4 {[%emt 0:00:07]} Qe6 {[%emt 0:00:34][%cal Od8d7]} 31. Ra4 {[%emt 0:00:40]} e4 {[%emt 0:00:43]} 32. Qd5 {[%emt 0:02:11]} ({Don't play} 32. Rxe4 $6 Rxd7 33. Rxe6 (33. Qxd7 Qxe4 34. Qd5 Qc2 $11) 33... Rxd3 34. Rxd3 fxe6 $16) 32... e3 {[%emt 0:00:35] [#]} 33. fxe3 {[%emt 0:00:28]} Qxe3+ {[%emt 0:00:04]} 34. Kh1 {[%emt 0:00:05]} Qe2 {[%emt 0:00:22]} 35. Re4 {[%emt 0:00:58]} Qb5 {[%emt 0:00:09]} 36. Qxb5 {[%emt 0:00:18]} axb5 $18 {[%emt 0:00:01][%mdl 4096] Endgame KRR-KRR} 37. Rb4 {[%emt 0:00:13]} Ra8 {[%emt 0:00:35]} 38. Rxb5 {[%emt 0:00:55]} Rfd8 {[%emt 0:00:01]} 39. Rb7 {[%emt 0:00:52]} ({White should play} 39. a4 $18) 39... Kf8 $1 $14 {[%emt 0:00:04] White is slightly better.} 40. Rd2 {[%emt 0:00:00]} Ke7 {[%emt 0:00:00]} 41. Kg1 {[%emt 0:03:13]} Ra5 {[%emt 0:07:49]} 42. Kf2 {[%emt 0:04:06]} f5 {[%emt 0:00:22]} 43. Kf3 {[%emt 0:10:01]} g5 {[%emt 0:01:11]} 44. h4 {[%emt 0:04:31]} h6 {[%emt 0:02:46]} 45. Re2+ {[%emt 0:03:18] Black escapes into a draw.  Weighted Error Value: White=0.13 (very precise) /Black=0.12 (very precise)} 1/2-1/2